bitfinex-derivatives/quotes_BTCF0:USTF0_20240910
["timestamp","ask_amount","ask_price","bid_price","bid_amount"]
[1725943603349,0.088317,56612.0,56611.0,0.10060137]
[1725943604160,0.176634,56612.0,56611.0,0.05620586]
[1725943604450,0.088317,56612.0,56611.0,0.05620586]
[1725943604661,0.088317,56612.0,56611.0,0.0034]
[1725943605154,0.088317,56612.0,56611.0,0.05620586]
[1725943605355,0.176633,56612.0,56611.0,0.0034]
[1725943605556,0.088316,56612.0,56611.0,0.091717]
[1725943605754,0.088311,56615.0,56611.0,0.21621024]
[1725943606054,0.02356316,56621.0,56616.0,0.088309]
[1725943606055,0.088307,56618.0,56616.0,0.088309]
[1725943606269,0.088307,56618.0,56617.0,0.088708]
[1725943606454,0.0485,56624.0,56618.0,0.088305]
[1725943606657,0.136797,56624.0,56623.0,0.0004]
[1725943607758,0.136797,56624.0,56623.0,0.0014]
[1725943608150,0.136797,56624.0,56623.0,0.0024]
[1725943609757,0.088297,56624.0,56623.0,0.090698]
[1725943609956,0.248297,56624.0,56623.0,0.0024]
[1725943610658,1.65977472,56624.0,56623.0,0.00037881]
[1725943611752,1.65977472,56624.0,56623.0,5.983e-05]
[1725943613262,1.49502213,56624.0,56623.0,5.983e-05]
[1725943613558,0.866394,56624.0,56623.0,5.983e-05]
[1725943613748,0.706394,56624.0,56623.0,5.983e-05]
[1725943614063,0.866394,56624.0,56623.0,5.983e-05]
[1725943614358,1.466394,56624.0,56623.0,5.983e-05]
[1725943614955,0.866394,56624.0,56623.0,5.983e-05]
[1725943615656,0.336594,56624.0,56623.0,5.983e-05]
[1725943621455,0.088297,56624.0,56623.0,5.983e-05]
[1725943623157,0.088297,56624.0,56623.0,0.08835783]
[1725943623360,0.16212,56628.0,56625.0,0.088294]
[1725943623361,0.088294,56626.0,56625.0,0.088294]
[1725943623555,0.088294,56626.0,56625.0,0.088694]
[1725943624562,0.088294,56626.0,56625.0,0.089694]
[1725943624563,0.089294,56626.0,56625.0,0.089694]
[1725943624761,0.089294,56626.0,56625.0,0.090694]
[1725943625652,0.001,56626.0,56625.0,0.090694]
[1725943625858,0.001,56626.0,56625.0,0.185894]
[1725943626364,0.001,56626.0,56625.0,0.2387172]
[1725943626564,0.089294,56626.0,56625.0,0.185894]
[1725943626768,0.177588,56626.0,56625.0,0.0024]
[1725943627657,0.795682,56626.0,56625.0,0.0024]
[1725943627855,0.265882,56626.0,56625.0,0.0024]
[1725943629668,0.289315,56626.0,56625.0,0.0024]
[1725943630767,0.201021,56626.0,56625.0,0.0024]
[1725943633365,0.30538848,56626.0,56625.0,0.0024]
[1725943639963,0.30545844,56626.0,56625.0,0.0024]
[1725943640474,0.31710426,56626.0,56614.0,0.0955]
[1725943640673,0.088711,56615.0,56614.0,0.0955]
[1725943640971,0.31674861,56615.0,56614.0,0.0955]
[1725943641172,0.36913735,56615.0,56614.0,0.0955]
[1725943641469,0.177022,56615.0,56614.0,0.0955]
[1725943641866,0.177022,56615.0,56614.0,0.16593093]
[1725943642372,0.178022,56615.0,56614.0,0.16593093]
[1725943642771,0.178022,56615.0,56613.0,0.07043093]
[1725943642772,0.088312,56614.0,56613.0,0.07043093]
[1725943642974,0.176628,56613.0,56612.0,0.07043093]
[1725943643276,0.088317,56611.0,56610.0,0.07043093]
[1725943643477,0.088319,56610.0,56609.0,0.07043093]
[1725943643785,0.088719,56610.0,56609.0,0.07043093]
[1725943643975,0.08832,56609.0,56608.0,0.0487]
[1725943644280,0.088327,56605.0,56598.0,0.1097464]
[1725943644574,0.088328,56604.0,56603.0,0.07046604]
[1725943644774,0.08833,56603.0,56602.0,0.07046604]
[1725943644965,0.08873,56603.0,56602.0,0.07046604]
[1725943645378,0.088333,56601.0,56600.0,0.07046604]
[1725943645571,0.0004,56601.0,56598.0,0.014]
[1725943645765,0.248736,56599.0,56598.0,0.014]
[1725943645965,0.248336,56599.0,56598.0,0.014]
[1725943646267,0.088339,56597.0,56596.0,0.07044848]
[1725943646484,0.088341,56596.0,56595.0,0.16644848]
[1725943647167,0.088341,56596.0,56595.0,0.11864848]
[1725943647366,0.088341,56596.0,56595.0,0.0482]
[1725943647686,0.088341,56596.0,56595.0,0.10098429]
[1725943648076,0.088341,56596.0,56595.0,0.11498429]
[1725943648569,0.088341,56596.0,56595.0,0.10098429]
[1725943648775,0.088341,56596.0,56595.0,0.11498429]
[1725943648976,0.088341,56596.0,56595.0,0.12898429]
[1725943649576,0.088341,56596.0,56595.0,0.0762]
[1725943650375,0.0004,56597.0,56596.0,0.088341]
[1725943650578,0.0004,56597.0,56596.0,0.088741]
[1725943650878,0.0004,56597.0,56596.0,0.14146804]
[1725943651377,0.0004,56597.0,56596.0,0.088741]
[1725943651583,0.0004,56597.0,56596.0,0.102741]
[1725943651882,0.0004,56597.0,56596.0,0.116741]
[1725943656572,0.0004,56597.0,56596.0,0.16944962]
[1725943659485,0.0004,56597.0,56596.0,0.116741]
[1725943659677,0.088739,56597.0,56596.0,0.116741]
[1725943659875,0.088739,56597.0,56596.0,0.0284]
[1725943663781,0.177078,56597.0,56596.0,0.0284]
[1725943664287,1.307158,56597.0,56596.0,0.0284]
[1725943669980,0.707158,56597.0,56596.0,0.0284]
[1725943673591,1.307158,56597.0,56596.0,0.0284]
[1725943674092,0.707158,56597.0,56596.0,0.0284]
[1725943674292,1.307158,56597.0,56596.0,0.0284]
[1725943674489,0.707158,56597.0,56596.0,0.0284]
[1725943675202,1.307158,56597.0,56596.0,0.0284]
[1725943675397,0.707158,56597.0,56596.0,0.0284]
[1725943675991,1.307158,56597.0,56596.0,0.0284]
[1725943676399,0.707158,56597.0,56596.0,0.0284]
[1725943676706,1.307158,56597.0,56596.0,0.0284]
[1725943677296,0.707158,56597.0,56596.0,0.0284]
[1725943677604,1.307158,56597.0,56596.0,0.0284]
[1725943679006,1.395497,56597.0,56596.0,0.0284]
[1725943679501,0.795497,56597.0,56596.0,0.0284]
[1725943680303,0.265417,56597.0,56596.0,0.0284]
[1725943689621,0.088346,56593.0,56587.0,0.07044848]
[1725943689923,0.1767,56590.0,56589.0,0.05289371]
[1725943690112,0.3367,56590.0,56589.0,0.05289371]
[1725943690517,0.3367,56590.0,56584.0,0.02334135]
[1725943690518,0.088351,56589.0,56587.0,0.07054478]
[1725943690714,0.0004,56588.0,56587.0,0.08454478]
[1725943690916,0.0004,56588.0,56587.0,0.09854478]
[1725943691524,0.088753,56588.0,56587.0,0.07054478]
[1725943691825,0.088753,56588.0,56587.0,0.08454478]
[1725943692024,0.088753,56588.0,56587.0,0.014]
[1725943693627,0.088355,56587.0,56586.0,0.08812891]
[1725943693827,0.088755,56587.0,56586.0,0.08812891]
[1725943694926,0.089755,56587.0,56586.0,0.09612891]
[1725943695116,0.090755,56587.0,56586.0,0.10812891]
[1725943695719,0.090755,56587.0,56586.0,0.02]
[1725943696118,0.090755,56587.0,56586.0,0.10812891]
[1725943696421,0.17911,56587.0,56586.0,0.02]
[1725943696821,0.17911,56587.0,56586.0,0.09062488]
[1725943697124,0.17911,56587.0,56586.0,0.02]
[1725943697325,0.17911,56587.0,56586.0,0.07296405]
[1725943697823,0.17911,56587.0,56586.0,0.02]
[1725943698028,0.29126713,56587.0,56586.0,0.07296593]
[1725943698230,0.29126713,56587.0,56586.0,0.02]
[1725943699915,0.20291213,56587.0,56586.0,0.02]
[1725943700123,0.0024,56587.0,56586.0,0.108356]
[1725943700829,0.090755,56587.0,56586.0,0.108356]
[1725943706933,0.090755,56587.0,56586.0,0.13187008]
[1725943710130,0.190755,56587.0,56586.0,0.13187008]
[1725943711032,0.190755,56587.0,56586.0,0.108356]
[1725943712535,0.190755,56587.0,56586.0,0.02]
[1725943714342,0.250755,56587.0,56586.0,0.02]
[1725943716333,0.250755,56587.0,56586.0,0.108356]
[1725943717629,0.0024,56587.0,56586.0,0.108356]
[1725943717836,0.0041,56595.0,56586.0,0.19680409]
[1725943718039,0.088342,56595.0,56594.0,0.088743]
[1725943718840,0.0004,56597.0,56596.0,0.088341]
[1725943719140,0.0041,56602.0,56596.0,0.088341]
[1725943719141,0.0041,56602.0,56601.0,0.088333]
[1725943719341,0.16,56604.0,56601.0,0.0004]
[1725943719640,0.16,56604.0,56603.0,0.0004]
[1725943719935,0.16,56604.0,56603.0,0.08873]
[1725943720328,0.16,56604.0,56603.0,0.14157387]
[1725943720528,0.249328,56604.0,56601.0,0.0084]
[1725943720742,0.249328,56604.0,56586.0,0.014]
[1725943720743,0.088337,56598.0,56597.0,0.05285292]
[1725943720943,0.088339,56597.0,56596.0,0.05285292]
[1725943721132,0.088739,56597.0,56596.0,0.05285292]
[1725943721443,0.088339,56597.0,56594.0,0.07049809]
[1725943721627,0.088339,56597.0,56596.0,0.05285425]
[1725943722032,0.088339,56597.0,56596.0,0.013]
[1725943722342,0.088339,56597.0,56596.0,0.06585157]
[1725943722541,0.088339,56597.0,56596.0,0.013]
[1725943723144,0.089339,56597.0,56596.0,0.019]
[1725943723346,0.089339,56597.0,56596.0,0.0718491]
[1725943723542,0.089339,56597.0,56596.0,0.0588491]
[1725943723847,0.089339,56597.0,56596.0,0.1471901]
[1725943724345,0.089339,56597.0,56596.0,0.1601901]
[1725943726441,0.089339,56597.0,56596.0,0.107341]
[1725943732345,0.089339,56597.0,56596.0,0.106341]
[1725943733636,0.089339,56597.0,56596.0,0.107341]
[1725943735347,0.089339,56597.0,56596.0,0.16018661]
[1725943736155,0.189339,56597.0,56596.0,0.107341]
[1725943736349,0.189339,56597.0,56596.0,0.16018661]
[1725943739247,0.189339,56597.0,56596.0,0.107341]
[1725943740444,0.189339,56597.0,56596.0,0.019]
[1725943742958,0.189339,56597.0,56596.0,0.107341]
[1725943744856,0.089339,56597.0,56596.0,0.107341]
[1725943745048,0.001,56597.0,56596.0,0.195682]
[1725943745350,0.001,56597.0,56596.0,0.107341]
[1725943745558,0.001,56597.0,56596.0,1.237421]
[1725943745854,0.0004,56602.0,56601.0,0.088333]
[1725943746054,0.0004,56602.0,56601.0,0.088733]
[1725943746255,0.0004,56602.0,56601.0,0.188733]
[1725943746657,0.0041,56609.0,56608.0,0.088322]
[1725943746857,0.088313,56614.0,56608.0,0.0004]
[1725943747157,0.1,56613.0,56608.0,0.0982]
[1725943747856,0.1,56613.0,56608.0,0.0992]
[1725943748050,0.088313,56614.0,56610.0,0.07051031]
[1725943748256,0.248313,56614.0,56613.0,0.0004]
[1725943750856,0.088313,56614.0,56613.0,0.0004]
[1725943751058,0.248313,56614.0,56613.0,0.0004]
[1725943753254,0.248313,56614.0,56613.0,0.088714]
[1725943754757,0.16,56614.0,56613.0,0.088714]
[1725943755149,0.0028,56617.0,56616.0,0.088309]
[1725943755958,0.0028,56617.0,56616.0,1.218189]
[1725943756256,0.0028,56617.0,56616.0,1.218589]
[1725943756456,0.0028,56617.0,56616.0,1.219589]
[1725943757660,0.0028,56617.0,56616.0,0.619589]
[1725943757854,0.1628,56617.0,56616.0,0.088709]
[1725943758260,0.0028,56617.0,56616.0,0.088709]
[1725943762851,0.0028,56617.0,56616.0,1.378589]
[1725943763158,0.0041,56622.0,56621.0,0.088302]
[1725943763359,0.0041,56626.0,56621.0,0.0008]
[1725943763560,0.088292,56628.0,56626.0,0.088293]
[1725943764061,0.088292,56628.0,56622.0,0.0497]
[1725943764062,0.088292,56628.0,56627.0,0.088292]
[1725943764761,0.16,56630.0,56629.0,0.088289]
[1725943764963,0.16,56630.0,56629.0,0.089089]
[1725943765658,0.248288,56630.0,56629.0,0.089089]
[1725943766264,0.248288,56630.0,56629.0,0.090089]
[1725943767868,0.248288,56630.0,56629.0,0.0018]
[1725943769365,0.248288,56630.0,56629.0,0.0008]
[1725943770562,0.336576,56630.0,56629.0,0.0008]
[1725943770761,0.248288,56630.0,56629.0,0.0008]
[1725943775963,0.248288,56630.0,56629.0,0.089089]
[1725943776656,0.248288,56630.0,56629.0,0.0008]
[1725943777268,0.248288,56630.0,56629.0,0.08842126]
[1725943777466,0.0041,56634.0,56633.0,0.088283]
[1725943777666,0.088279,56636.0,56633.0,0.0008]
[1725943777866,0.088279,56636.0,56635.0,0.0008]
[1725943778177,0.11689916,56636.0,56635.0,0.08828]
[1725943778869,0.11689916,56636.0,56635.0,0.08928]
[1725943780268,0.11689916,56636.0,56635.0,0.09028]
[1725943781362,0.19413341,56636.0,56635.0,0.09028]
[1725943781563,0.22275357,56636.0,56635.0,0.09028]
[1725943781963,0.11689916,56636.0,56635.0,0.09028]
[1725943783371,0.19413341,56636.0,56635.0,0.09028]
[1725943783573,0.22275357,56636.0,56635.0,0.09028]
[1725943783958,0.22256475,56636.0,56635.0,0.09028]
[1725943784362,0.11689916,56636.0,56635.0,0.09028]
[1725943784559,0.088279,56636.0,56635.0,0.09028]
[1725943788378,0.16,56638.0,56637.0,0.088277]
[1725943788571,0.16,56638.0,56637.0,0.14186409]
[1725943789570,0.248275,56638.0,56637.0,0.05358709]
[1725943789979,0.248275,56638.0,56637.0,0.0018]
[1725943790178,0.248275,56638.0,56637.0,0.0028]
[1725943791582,0.35288659,56638.0,56637.0,0.0028]
[1725943791976,0.27689568,56638.0,56637.0,0.091077]
[1725943792278,0.02862068,56638.0,56637.0,0.091077]
[1725943792673,0.0286197,56639.0,56637.0,0.0028]
[1725943792975,0.0286197,56638.0,56637.0,0.090277]
[1725943793171,0.088272,56640.0,56637.0,0.002]
[1725943793172,0.02861967,56639.0,56637.0,0.002]
[1725943793367,0.02861967,56638.0,56637.0,0.002]
[1725943793576,0.088272,56640.0,56638.0,0.089075]
[1725943793782,0.10473257,56639.0,56638.0,0.089075]
[1725943795177,0.10473257,56639.0,56638.0,0.090075]
[1725943795178,0.10474196,56639.0,56638.0,0.090075]
[1725943795380,0.02861953,56642.0,56638.0,0.0018]
[1725943795584,0.07611981,56641.0,56639.0,0.0467]
[1725943795886,0.10474642,56640.0,56639.0,0.0467]
[1725943796380,0.10474642,56640.0,56639.0,0.134973]
[1725943796579,0.07612689,56640.0,56639.0,0.134973]
[1725943797888,0.12340476,56640.0,56639.0,0.28184688]
[1725943798078,0.10566735,56640.0,56639.0,0.2097]
[1725943798379,0.0286157,56640.0,56639.0,0.16554437]
[1725943798578,0.21166776,56646.0,56639.0,0.16554437]
[1725943798579,0.02861488,56645.0,56639.0,0.16554437]
[1725943798781,0.10498756,56644.0,56639.0,0.16554437]
[1725943798986,0.10573366,56640.0,56639.0,0.25381737]
[1725943799183,0.12340476,56647.0,56639.0,0.25381737]
[1725943799184,0.10573366,56641.0,56640.0,0.088272]
[1725943799388,0.088258,56649.0,56641.0,0.08827]
[1725943799389,0.10573366,56642.0,56641.0,0.08827]
[1725943799588,0.088258,56649.0,56648.0,0.088259]
[1725943799882,0.10573366,56657.0,56648.0,0.088259]
[1725943799883,0.088254,56652.0,56648.0,0.0008]
[1725943800088,0.088254,56652.0,56651.0,0.0008]
[1725943800278,0.088254,56652.0,56651.0,0.088255]
[1725943800481,0.0971,56658.0,56648.0,0.0008]
[1725943800676,0.16,56651.0,56648.0,0.05354828]
[1725943801082,0.088257,56650.0,56649.0,0.088258]
[1725943802780,0.16,56655.0,56652.0,0.088253]
[1725943803080,0.088249,56655.0,56654.0,0.0008]
[1725943804688,0.088249,56655.0,56654.0,0.08905]
[1725943804889,0.088249,56655.0,56654.0,0.09005]
[1725943806397,0.088249,56655.0,56654.0,0.09105]
[1725943806989,0.248249,56655.0,56654.0,0.0028]
[1725943807297,0.336498,56655.0,56654.0,0.0028]
[1725943808398,0.47066828,56655.0,56654.0,0.00043859]
[1725943808801,0.38241928,56655.0,56654.0,0.00043859]
[1725943809098,0.38241353,56655.0,56654.0,0.00043859]
[1725943809296,0.27686176,56655.0,56654.0,0.00043859]
[1725943809497,0.2783295,56655.0,56654.0,0.00043859]
[1725943811403,0.3838529,56655.0,56654.0,0.00043859]
[1725943811602,0.2783295,56655.0,56654.0,0.00043859]
[1725943812101,0.088264,56645.0,56644.0,0.0041]
[1725943812396,0.088277,56637.0,56634.0,0.3259]
[1725943812589,0.248277,56637.0,56634.0,0.02366956]
[1725943812794,0.248277,56637.0,56633.0,0.088282]
[1725943812998,0.16,56637.0,56633.0,0.088282]
[1725943813801,0.16,56637.0,56628.0,0.0951]
[1725943813998,0.10964043,56640.0,56631.0,0.088286]
[1725943814205,0.13416051,56639.0,56635.0,0.088279]
[1725943814504,0.16,56641.0,56636.0,0.088278]
[1725943814505,0.11689508,56638.0,56636.0,0.088278]
[1725943814703,0.088275,56638.0,56636.0,0.088278]
[1725943815397,0.088275,56638.0,56637.0,0.088277]
[1725943816700,0.0041,56646.0,56637.0,0.16]
[1725943816897,0.088264,56645.0,56643.0,0.088266]
[1725943817600,0.088266,56644.0,56643.0,0.088266]
[1725943818495,0.088266,56644.0,56643.0,0.091266]
[1725943819098,0.088266,56644.0,56643.0,0.093266]
[1725943821910,0.088263,56646.0,56643.0,0.093266]
[1725943822105,0.088263,56646.0,56645.0,0.0008]
[1725943824219,0.088263,56646.0,56645.0,0.0018]
[1725943828519,0.706127,56646.0,56645.0,0.0018]
[1725943828825,0.176527,56646.0,56645.0,0.0018]
[1725943831119,0.20514569,56646.0,56645.0,0.0018]
[1725943832614,0.11688169,56646.0,56645.0,0.0018]
[1725943833118,0.088263,56646.0,56645.0,0.0018]
[1725943833515,0.20514508,56646.0,56645.0,0.0018]
[1725943835623,0.31068551,56646.0,56645.0,0.0018]
[1725943836418,0.22242151,56646.0,56645.0,0.0018]
[1725943836615,0.31068551,56646.0,56645.0,0.0018]
[1725943837030,0.22242151,56646.0,56645.0,0.0018]
[1725943837227,0.088263,56646.0,56645.0,0.0018]
[1725943838324,0.088263,56646.0,56645.0,0.05449602]
[1725943838525,0.088263,56646.0,56645.0,0.0018]
[1725943839530,0.088263,56646.0,56645.0,0.05459518]
[1725943839735,0.088263,56646.0,56645.0,0.14285918]
[1725943840121,0.088263,56646.0,56645.0,0.05459518]
[1725943840431,0.088263,56646.0,56645.0,0.0018]
[1725943841226,0.088263,56646.0,56645.0,0.14285918]
[1725943841428,0.088263,56646.0,56645.0,0.090064]
[1725943842224,0.00092,56648.0,56647.0,0.088261]
[1725943842433,0.088258,56650.0,56649.0,0.088257]
[1725943842830,0.088258,56650.0,56649.0,0.15907721]
[1725943843032,0.088258,56650.0,56649.0,0.15867721]
[1725943843527,0.088258,56650.0,56649.0,0.088257]
[1725943844129,0.11687252,56650.0,56649.0,0.088257]
[1725943845537,0.02861452,56650.0,56649.0,0.088257]
[1725943845837,0.02861452,56650.0,56647.0,0.0004]
[1725943846041,0.088252,56653.0,56652.0,0.088253]
[1725943846351,0.02861245,56653.0,56652.0,0.089053]
[1725943846538,0.10728118,56655.0,56654.0,0.08825]
[1725943846739,0.03007914,56655.0,56654.0,0.08905]
[1725943848039,0.03007914,56655.0,56654.0,0.09005]
[1725943848935,0.11832814,56655.0,56654.0,0.09005]
[1725943849435,0.11832814,56655.0,56654.0,0.09105]
[1725943851733,0.11832814,56655.0,56654.0,0.0028]
[1725943851925,0.22414158,56655.0,56654.0,0.0028]
[1725943852332,0.17796574,56655.0,56654.0,0.0028]
[1725943857536,0.17796574,56655.0,56647.0,0.0004]
[1725943857537,0.088258,56649.0,56647.0,0.0004]
[1725943857732,0.0468,56648.0,56647.0,0.0004]
[1725943858039,0.0942,56648.0,56647.0,0.0004]
[1725943858533,1.2238,56648.0,56640.0,0.05280606]
[1725943858733,0.16,56641.0,56640.0,0.05280606]
[1725943858934,0.16,56641.0,56639.0,0.05274764]
[1725943859337,0.16,56641.0,56636.0,0.088277]
[1725943860141,0.16,56644.0,56635.0,0.05274764]
[1725943860341,0.088269,56643.0,56637.0,0.05274764]
[1725943860643,0.088269,56642.0,56641.0,0.088269]
[1725943862043,0.088269,56642.0,56641.0,0.093269]
[1725943862939,0.088269,56642.0,56641.0,0.005]
[1725943863142,0.088269,56642.0,56641.0,0.009]
[1725943863941,0.176538,56642.0,56641.0,0.009]
[1725943867339,0.20042211,56642.0,56641.0,0.009]
[1725943867646,0.11215311,56642.0,56641.0,0.009]
[1725943869337,0.20042211,56642.0,56641.0,0.009]
[1725943875257,0.20082211,56642.0,56641.0,0.009]
[1725943880446,0.22944232,56642.0,56641.0,0.009]
[1725943881543,0.22944232,56642.0,56641.0,0.004]
[1725943881744,0.22944232,56642.0,56641.0,0.008]
[1725943882151,0.22944232,56642.0,56641.0,0.004]
[1725943882348,0.20082211,56642.0,56641.0,0.007]
[1725943882847,0.20082211,56642.0,56641.0,0.005]
[1725943886955,0.11255311,56642.0,56641.0,0.005]
[1725943887454,0.14117315,56642.0,56641.0,0.005]
[1725943887850,0.22944215,56642.0,56641.0,0.005]
[1725943889046,0.14117315,56642.0,56641.0,0.005]
[1725943889559,0.0004,56642.0,56641.0,0.09327]
[1725943889760,0.0004,56642.0,56641.0,0.21199021]
[1725943889946,0.0004,56642.0,56641.0,0.14157]
[1725943891055,0.0004,56642.0,56641.0,0.16364892]
[1725943895263,0.088669,56642.0,56641.0,0.12377865]
[1725943895461,0.088669,56642.0,56641.0,0.21204865]
[1725943895659,0.088669,56642.0,56641.0,0.0533]
[1725943896063,0.188669,56642.0,56641.0,0.0533]
[1725943896556,0.188669,56642.0,56641.0,0.12377865]
[1725943897458,0.188669,56642.0,56641.0,0.0533]
[1725943898870,0.0004,56642.0,56641.0,0.14157]
[1725943899156,0.0004,56642.0,56641.0,0.19442817]
[1725943899354,0.0004,56642.0,56641.0,0.14157]
[1725943900967,0.0004,56642.0,56641.0,0.19442373]
[1725943904275,0.0004,56642.0,56641.0,0.14157]
[1725943909661,0.0004,56642.0,56641.0,0.005]
[1725943909662,0.176938,56642.0,56641.0,0.005]
[1725943910070,0.176938,56642.0,56641.0,0.07549626]
[1725943910269,0.176938,56642.0,56641.0,0.005]
[1725943911475,0.088669,56642.0,56641.0,0.005]
[1725943911973,0.088669,56642.0,56641.0,0.003]
[1725943912462,0.088669,56642.0,56641.0,0.05989191]
[1725943912963,0.088669,56642.0,56641.0,0.05989178]
[1725943913162,0.088669,56642.0,56641.0,0.007]
[1725943913467,0.088669,56642.0,56641.0,0.05989741]
[1725943913769,0.11132882,56642.0,56641.0,0.05989676]
[1725943914572,0.11132882,56642.0,56641.0,0.007]
[1725943915477,0.11132882,56642.0,56641.0,0.05989]
[1725943916176,0.11132882,56642.0,56641.0,0.007]
[1725943916875,0.11132882,56642.0,56641.0,0.05989627]
[1725943917077,0.11132882,56642.0,56641.0,0.007]
[1725943919079,0.11132882,56642.0,56641.0,0.07749626]
[1725943919475,0.11132882,56642.0,56641.0,0.007]
[1725943920175,0.21132882,56642.0,56641.0,0.007]
[1725943920777,0.29959782,56642.0,56641.0,0.007]
[1725943920971,0.29959782,56642.0,56641.0,0.07758134]
[1725943920972,0.21132882,56642.0,56641.0,0.07758134]
[1725943921176,0.29959782,56642.0,56641.0,0.007]
[1725943921395,0.21132882,56642.0,56641.0,0.007]
[1725943921576,0.29959782,56642.0,56641.0,0.007]
[1725943921887,0.21132882,56642.0,56641.0,0.07757773]
[1725943922188,0.21132882,56642.0,56641.0,0.007]
[1725943922580,0.21132882,56642.0,56641.0,0.07758337]
[1725943922581,0.29959782,56642.0,56641.0,0.07758337]
[1725943922879,0.21132882,56642.0,56641.0,0.007]
[1725943923382,0.21132882,56642.0,56641.0,0.07757583]
[1725943924785,0.29959782,56642.0,56641.0,0.07757583]
[1725943927082,0.21132882,56642.0,56641.0,0.07757583]
[1725943927275,0.21132882,56642.0,56641.0,0.16584583]
[1725943927475,0.21132882,56642.0,56641.0,0.09527]
[1725943928192,0.21132882,56642.0,56641.0,0.16583752]
[1725943929480,0.188669,56642.0,56641.0,0.16583752]
[1725943929675,0.0004,56642.0,56641.0,0.16583752]
[1725943930683,0.0004,56642.0,56641.0,0.09527]
[1725943932791,0.0004,56642.0,56641.0,0.11715198]
[1725943935988,0.0004,56642.0,56641.0,0.09527]
[1725943937083,0.088669,56642.0,56641.0,0.007]
[1725943937283,0.176938,56642.0,56641.0,0.007]
[1725943937489,0.274838,56642.0,56641.0,0.007]
[1725943939194,0.29716776,56642.0,56641.0,0.007]
[1725943940700,0.3257883,56642.0,56641.0,0.007]
[1725943942699,0.29716776,56642.0,56641.0,0.007]
[1725943945001,0.38543676,56642.0,56641.0,0.007]
[1725943946792,1.36716053,56642.0,56633.0,0.05291278]
[1725943946998,0.176576,56630.0,56629.0,0.05291278]
[1725943947196,0.176976,56630.0,56629.0,0.05291278]
[1725943947396,0.176578,56629.0,56628.0,0.05291278]
[1725943947696,0.188689,56629.0,56628.0,0.05291278]
[1725943948100,0.188689,56629.0,56627.0,0.05291278]
[1725943948101,0.088291,56628.0,56627.0,0.05291278]
[1725943948295,0.1004,56628.0,56627.0,0.05288199]
[1725943948502,0.276982,56628.0,56627.0,0.05288199]
[1725943948703,0.088292,56627.0,56626.0,0.05288199]
[1725943949004,0.188692,56627.0,56626.0,0.05288199]
[1725943949604,0.088294,56626.0,56625.0,0.05288199]
[1725943949812,0.088295,56625.0,56624.0,0.09958199]
[1725943950009,0.088695,56625.0,56624.0,0.0467]
[1725943950305,0.088695,56625.0,56624.0,0.09958199]
[1725943950306,0.088295,56625.0,56624.0,0.09958199]
[1725943950903,0.088295,56625.0,56624.0,0.0467]
[1725943951211,0.088295,56625.0,56624.0,0.0567]
[1725943953109,0.088295,56625.0,56624.0,0.0687]
[1725943958208,0.17659,56625.0,56624.0,0.022]
[1725943958505,0.264885,56625.0,56624.0,0.022]
[1725943959907,0.264885,56625.0,56624.0,0.012]
[1725943960106,0.264885,56625.0,56624.0,0.017]
[1725943960704,0.088308,56617.0,56616.0,0.092408]
[1725943960904,0.188708,56617.0,56616.0,0.088308]
[1725943962413,0.188708,56617.0,56616.0,0.101308]
[1725943962913,0.188708,56617.0,56616.0,0.113308]
[1725943965715,0.188708,56617.0,56616.0,0.108308]
[1725943966321,0.188708,56617.0,56616.0,0.103308]
[1725943967406,0.188708,56617.0,56616.0,0.015]
[1725943967918,0.277016,56617.0,56616.0,0.015]
[1725943973306,0.365324,56617.0,56616.0,0.015]
[1725943974424,0.895204,56617.0,56616.0,0.015]
[1725943976322,0.08832,56609.0,56608.0,0.10078199]
[1725943976524,0.18872,56609.0,56608.0,0.0479]
[1725943977429,0.18872,56609.0,56608.0,0.10075571]
[1725943978725,0.18872,56609.0,56608.0,0.10675571]
[1725943978928,0.18872,56609.0,56608.0,0.11175571]
[1725943979627,0.18872,56609.0,56608.0,0.0589]
[1725943980223,0.27704,56609.0,56608.0,0.011]
[1725943981940,0.29964896,56609.0,56608.0,0.011]
[1725943982441,0.38796896,56609.0,56608.0,0.011]
[1725943987235,0.38486896,56609.0,56608.0,0.011]
[1725943990144,0.38486896,56609.0,56608.0,0.006]
[1725943992848,0.38486896,56609.0,56608.0,0.001]
[1725943995451,0.088333,56601.0,56600.0,0.0465]
[1725943995652,0.188333,56601.0,56600.0,0.0465]
[1725943995855,0.188733,56601.0,56600.0,0.0465]
[1725943996547,0.188733,56601.0,56600.0,0.134834]
[1725943996858,0.0004,56601.0,56600.0,0.144834]
[1725943997042,0.0004,56601.0,56600.0,0.21534538]
[1725943997452,0.0004,56601.0,56600.0,0.144834]
[1725943997756,0.0004,56601.0,56600.0,0.22435717]
[1725943998450,0.088733,56601.0,56600.0,0.153834]
[1725944002053,0.0004,56601.0,56600.0,0.153834]
[1725944002452,0.0004,56601.0,56600.0,0.33198025]
[1725944004558,0.0004,56601.0,56600.0,0.24384102]
[1725944007060,0.0004,56601.0,56600.0,0.33212065]
[1725944007450,0.0004,56601.0,56600.0,0.24384102]
[1725944008057,0.0004,56601.0,56600.0,0.24387528]
[1725944009455,0.088733,56601.0,56600.0,0.24387528]
[1725944009760,0.088733,56601.0,56600.0,0.33219267]
[1725944010151,0.088733,56601.0,56600.0,0.24387528]
[1725944010357,0.088733,56601.0,56600.0,0.33219297]
[1725944010549,0.088733,56601.0,56600.0,0.24387528]
[1725944011153,0.088733,56601.0,56600.0,0.33219258]
[1725944011654,0.088733,56601.0,56600.0,0.33219694]
[1725944012451,0.088733,56601.0,56600.0,0.24387528]
[1725944014953,0.0004,56601.0,56600.0,0.24387528]
[1725944015364,0.0004,56601.0,56600.0,0.34964235]
[1725944015565,0.0004,56601.0,56600.0,0.24387528]